Cogmind - Beta 9.6 @@@ ROGUE MODE // 2020.08.20 @ 15:38:10 Player: Plexion Result: Destroyed by as-95831 with Assembled Focal Cannon Performance ------------- Evolutions (4) 2000 Regions Visited (15) 3000 Robots Destroyed (137) 685 Value Destroyed (2395) 2395 Prototype IDs (37) 740 Alien Tech Used (0) 0 Bonus (758) 758 TOTAL SCORE: 9578 Bonus ------- High Alert Combat Kills 11 Aligned with FarCom 300 Destroyed Z-Imprinter 1000 Friendly Fire -553 Cogmind --------- Core Integrity 0/850 Matter 185/300 Energy 93/100 System Corruption 0% Temperature Cool (12) Movement Flying (37) Location -6/Deep Caves Parts ------- > --- POWER (2) -------- (None) > --- PROPULSION (3) --- Biomechanical Wings Biomechanical Wings > --- UTILITY (8) ------ Zionite Weapon Casing Improved Hacking Suite Improved System Shield > --- WEAPON (2) ------- Power Sword > --- INVENTORY (4) ---- Zionite Weapon Casing Zionite Weapon Casing AS-neutralizer No. 17b Peak State ------------ > --- POWER ------------ Light Angular Momentum Engine > --- PROPULSION ------- Biomechanical Wings Biomechanical Wings Biomechanical Wings > --- UTILITY ---------- Large Storage Unit Gravity Neutralizing Apparatus Long-range Sensor Array Advanced Signal Interpreter Improved Hacking Suite Improved Hacking Suite Improved Hacking Suite Improved System Shield > --- WEAPON ----------- 8R-AWN's Boregun Power Sword > --- INVENTORY -------- Improved VTOL Module Xenon Bombardment Thruster Superbattery Long-range Terrain Scanner Phase Shifter Improved Light Armor Plating Makeshift System Shield AS-neutralizer No. 17b Hypervelocity Gauss Rifle Shock Bomb Launcher [Rating: 76] Favorites ----------- Power Light Nuclear Core Engine Light Ion Engine Power Core Light Nuclear Core Reactor Cold Fusion Reactor Propulsion Improved VTOL Module Treads Light Treads Leg Advanced Myomer Leg Wheel Armored Wheel Flight Unit Improved VTOL Module Utility Large Storage Unit Device Gravity Neutralizing Apparatus Storage Large Storage Unit Processor Advanced Signal Interpreter Hackware Improved Hacking Suite Protection Medium Armor Plating Weapon Autogun Energy Gun EM Pulse Gun Ballistic Gun Autogun Launcher Grenade Launcher Special Weapon Plasma Cutter Impact Weapon Heavy Hammer Slashing Weapon Ripper Build | -11 -10 -10 -9 -9 -9 -8 -8 -7 -6 -6 -6 -6 -6 -6 -6 ------- Run | Scr Mat Min Mat Min Exi Min Mat Fac Fac Was Fac Low Low Zio Dee Slots Evolved 8 | . . . 2 . . . 2 2 2 . . . . . . Power 1 | . . . . . . . . . 1 . . . . . . Propulsion 1 | . . . . . . . 1 . . . . . . . . Utility 6 | . . . 2 . . . 1 2 1 . . . . . . Weapon . | . . . . . . . . . . . . . . . . Parts Attached 152 | 8 8 8 25 2 23 2 18 17 9 . 10 4 . . 18 Power 12 | 2 . . 2 1 . 1 1 2 2 . 1 . . . . Engine 6 | 2 . . 1 . . 1 1 . . . 1 . . . . Core 5 | . . . 1 1 . . . 2 1 . . . . . . Reactor 1 | . . . . . . . . . 1 . . . . . . Propulsion 36 | 2 . 2 7 . 5 . 5 4 2 . 6 1 . . 2 Treads 14 | 2 . . 4 . 3 . 5 . . . . . . . . Leg 2 | . . . . . 2 . . . . . . . . . . Wheel 5 | . . 2 3 . . . . . . . . . . . . Hover . | . . . . . . . . . . . . . . . . Flight 15 | . . . . . . . . 4 2 . 6 1 . . 2 Utility 52 | 1 2 . 7 . 10 . 4 9 5 . 2 2 . . 10 Device 12 | . . . . . 3 . . 3 1 . 1 2 . . 2 Storage 17 | 1 2 . 7 . 2 . . 3 . . . . . . 2 Processor 3 | . . . . . . . 1 2 . . . . . . . Hackware 5 | . . . . . . . . 1 4 . . . . . . Protection 15 | . . . . . 5 . 3 . . . 1 . . . 6 Artifact . | . . . . . . . . . . . . . . . . Weapon 52 | 3 6 6 9 1 8 1 8 2 . . 1 1 . . 6 Energy Gun 2 | 2 . . . . . . . . . . . . . . . Energy Cannon . | . . . . . . . . . . . . . . . . Ballistic Gun 26 | 1 4 3 4 1 6 . 5 . . . . . . . 2 Ballistic Cannon . | . . . . . . . . . . . . . . . . Launcher 16 | . 2 3 4 . 1 1 1 1 . . . 1 . . 2 Special Weapon 1 | . . . . . 1 . . . . . . . . . . Impact Weapon 1 | . . . 1 . . . . . . . . . . . . Slashing Weapon 6 | . . . . . . . 2 1 . . 1 . . . 2 Piercing Weapon . | . . . . . . . . . . . . . . . . Special Melee Weapon . | . . . . . . . . . . . . . . . . Unidentified Prototypes 11 | . . . . . 6 . . . 1 . 1 . . . 3 Parts Lost 32 | . 2 2 2 1 10 1 1 . . . . . . . 13 Power 5 | . . . 2 1 . 1 . . . . . . . . 1 Propulsion 8 | . . 2 . . 3 . . . . . . . . . 3 Utility 10 | . . . . . 3 . 1 . . . . . . . 6 Weapon 9 | . 2 . . . 4 . . . . . . . . . 3 Highest Loss Streak 10 | . 1 1 1 1 10 1 1 . . . . . . . 8 Average Slot Usage (%) 93 | . 99 90 99 95 98 100 99 91 82 86 86 86 93 93 79 Engine 5 | . 14 14 8 3 . 6 9 . . . 5 6 6 6 2 Core 3 | . . . 2 3 11 4 . 6 6 6 . . . . . Treads 11 | . 28 12 14 22 20 . 26 . . . . . . . . Leg 1 | . . . . . . 22 . . . . . . . . . Wheel 1 | . . 6 7 . . . . . . . . . . . . Flight 8 | . . . . . . . . 21 20 20 20 20 20 20 20 Device 5 | . . . . . . . . 14 13 13 12 13 13 13 4 Storage 24 | . 27 28 44 44 32 44 36 15 7 6 6 6 6 6 8 Processor 3 | . . . . . . . . 14 12 6 6 6 6 6 5 Hackware 7 | . . . . . . . . 6 14 26 26 26 26 26 25 Protection 2 | . . . . . 9 . 8 . . . . . . . 1 Energy Gun 1 | . 14 . . . . . . . . . . . . . . Ballistic Gun 10 | . 13 22 21 16 21 12 12 . . . . . . . 1 Launcher 1 | . . 5 . 5 . 9 1 . . . . . 6 6 1 Slashing Weapon 2 | . . . . . . . 4 6 6 6 6 6 6 6 5 Naked Turns . | . . . . . . . . . . . . . . . . Heaviest Build 104 | 13 43 43 89 91 94 91 104 96 30 27 31 36 36 36 36 Greatest Support 60 | 40 40 40 40 40 60 60 60 60 31 30 34 36 36 36 36 Greatest Overweight (x) 31 | . 1 14 3 2 31 1 4 2 8 1 1 . . 2 6 Average Overweight (x) . | . . 2 2 2 1 1 1 . . . . . . 1 . Largest Inventory Capacity 30 | 6 16 16 30 30 30 30 30 30 10 10 10 10 10 10 10 Average Capacity 18 | 5 15 16 28 30 23 30 30 10 10 10 10 10 10 10 9 Most Carried 30 | 2 16 16 30 30 30 30 30 30 10 10 10 10 10 10 10 Average Carried 17 | 1 11 15 26 29 22 29 29 10 9 9 9 9 9 9 7 Final Capacity 30 | 6 16 16 30 30 30 30 30 10 10 10 10 10 10 10 4 Final Carried 30 | 2 15 16 29 30 30 29 30 10 10 10 10 10 10 10 3 Class Distribution -------------------- 38% | Hauler-Mutant 21% | Mutant 18% | Hacker-Mutant 14% | Hacker-Sprinter Dominant Class ---------------- Mutant | -10/Materials Mutant | -10/Mines Hauler-Mutant | -9/Materials Hauler-Mutant | -9/Mines Hauler-Mutant | -9/Exiles Hauler-Mutant | -8/Mines Hauler-Mutant | -8/Materials Scavenger-Sprinter | -7/Factory Hacker-Sprinter | -6/Factory Hacker-Mutant | -6/Waste Hacker-Sprinter | -6/Factory Hacker-Sprinter | -6/Lower Caves Hacker-Mutant | -6/Lower Caves Hacker-Mutant | -6/Zion Hacker-Mutant | -6/Deep Caves Resources | -11 -10 -10 -9 -9 -9 -8 -8 -7 -6 -6 -6 -6 -6 -6 -6 ----------- Run | Scr Mat Min Mat Min Exi Min Mat Fac Fac Was Fac Low Low Zio Dee Matter Collected 3631 | 272 198 424 851 145 416 201 579 . 197 103 85 26 . 24 110 Remotely . | . . . . . . . . . . . . . . . . Salvage Created 3462 | 23 259 235 1228 105 134 204 700 83 . . 108 . . . 383 Parts 245 | 3 20 26 76 17 10 24 48 5 . . 4 . . . 12 Haulers Intercepted 7 | . . . 5 . . . 1 . . . 1 . . . . Recyclers Shooed . | . . . . . . . . . . . . . . . . Parts Field Recycled . | . . . . . . . . . . . . . . . . Retrieved Matter . | . . . . . . . . . . . . . . . . Parts Self-Destructed 6 | . . . . . . . . . . . . . . 6 . Prevented . | . . . . . . . . . . . . . . . . Kills | -11 -10 -10 -9 -9 -9 -8 -8 -7 -6 -6 -6 -6 -6 -6 -6 ------- Run | Scr Mat Min Mat Min Exi Min Mat Fac Fac Was Fac Low Low Zio Dee Combat Hostiles Destroyed 87 | . 9 14 22 4 6 10 13 4 . . . . . . 5 Melee 3 | . . . . . . . . 1 . . . . . . 2 Guns 35 | . 3 3 12 3 2 3 8 . . . . . . . 1 AOE 49 | . 6 11 10 1 4 7 5 3 . . . . . . 2 Classes Destroyed 14 | 1 6 2 3 . . . . 1 . . . . . . 1 Worker 8 | . 1 2 . 1 . . 4 . . . . . . . . Builder 5 | . 2 . 3 . . . . . . . . . . . . Tunneler 10 | 1 . 2 1 2 . 3 1 . . . . . . . . Hauler 7 | . . . 5 . . . 1 . . . 1 . . . . Recycler 3 | . . 1 1 . . . 1 . . . . . . . . Operator 3 | . 1 . 1 . . . 1 . . . . . . . . Watcher 6 | . 2 . 2 . . . 2 . . . . . . . . Swarmer 36 | . 6 9 3 4 . 7 4 3 . . . . . . . Grunt 20 | . 3 . 11 . . 2 4 . . . . . . . . Brawler 2 | . . . 1 . . 1 . . . . . . . . . Sentry 12 | . . . 7 . . . 5 . . . . . . . . Programmer 1 | . . . . . . . . 1 . . . . . . . Z-Technician 5 | . . . . . . . . . . . . . . . 5 Z-Light 2 | . . . . . . . . . . . . . . . 2 Assembled 14 | . . 5 . . 7 . . . . . . . . . 2 Savage 1 | . . . . . . . . . . . . . . . 1 Best Kill Streak 9 | 1 8 5 9 3 5 7 4 4 . . 1 . . . 5 Combat Bots Only 6 | . 6 5 6 3 5 6 4 4 . . . . . . 2 Max Kills in Single Turn 3 | 1 2 3 3 1 2 2 3 2 . . 1 . . . 1 Gunslinging . | . . . . . . . . . . . . . . . . Exploded 3 | . 2 3 3 1 2 2 3 2 . . . . . . 1 Melee 1 | . . . . . . . . 1 . . . . . . 1 Uniques/NPCs Destroyed 2 | . . . . . 1 . . . . . . . . . 1 8R-AWN (-9/Exiles) Z-Imprinter (-6/Deep Caves) Combat | -11 -10 -10 -9 -9 -9 -8 -8 -7 -6 -6 -6 -6 -6 -6 -6 -------- Run | Scr Mat Min Mat Min Exi Min Mat Fac Fac Was Fac Low Low Zio Dee Damage Taken 6012 | . 383 312 666 159 1438 97 501 294 73 . 120 . 54 . 1915 Core 1437 | . 44 56 138 23 132 11 29 146 26 . 72 . 19 . 741 Absorbed by Shields . | . . . . . . . . . . . . . . . . Core Remaining (%) 71 | 100 . 60 . . . 24 94 79 . . . . . . . Volleys Fired 263 | 1 31 25 70 16 49 11 37 3 . . . . . . 20 Largest 2 | 2 2 2 2 2 2 2 2 1 . . . . . . 1 Hottest 80 | 80 80 46 46 46 46 46 53 30 . . . . . . 36 Shots Fired 452 | 2 52 38 134 30 92 15 66 3 . . . . . . 20 Gun 394 | 2 42 26 128 28 84 9 63 . . . . . . . 12 Cannon . | . . . . . . . . . . . . . . . . Launcher 54 | . 10 12 6 2 4 6 3 3 . . . . . . 8 Special 4 | . . . . . 4 . . . . . . . . . . Kinetic 361 | . 11 26 128 28 84 9 63 . . . . . . . 12 Thermal 4 | . . . . . 4 . . . . . . . . . . Explosive 46 | . 10 12 6 2 4 6 3 3 . . . . . . . Electromagnetic 41 | 2 31 . . . . . . . . . . . . . 8 Robot Hit Streak 19 | 1 6 3 13 5 19 9 8 . . . . . . . 6 Robot Miss Streak 5 | . 2 5 5 3 2 2 3 . . . . . . . 3 Penetration Max . | . . . . . . . . . . . . . . . . Secondary Targets 6 | . . 1 1 1 1 2 . . . . . . . . . Max Gunslinging Chain 1 | . . 1 1 1 1 1 . . . . . . . . . Shots Hit Robots 314 | 1 30 14 91 15 76 5 48 3 . . 7 . . . 24 Core Hits 226 | 1 22 27 64 7 35 17 32 6 . . 2 . . . 13 Critical Hits 6 | . . 1 1 . . . . . . . . . . . 4 Critical Kills 2 | . . . . . . . . . . . . . . . 2 Critical Parts Destroyed 2 | . . 1 . . . . . . . . . . . . 1 Melee Attacks 206 | . . . 2 . . . 11 34 61 . 45 . 3 13 37 Impact 2 | . . . 2 . . . . . . . . . . . . Slashing 204 | . . . . . . . 11 34 61 . 45 . 3 13 37 Piercing . | . . . . . . . . . . . . . . . . Sneak Attacks 11 | . . . . . . . 4 . . . 2 . . . 5 Combat Hostiles . | . . . . . . . . . . . . . . . . Follow-up Attacks . | . . . . . . . . . . . . . . . . Damage Inflicted 10132 | 13 967 636 2106 264 1582 617 1658 353 . . 424 . . . 1512 Guns 4040 | 13 369 195 1320 174 1079 71 717 . . . . . . . 102 Cannons . | . . . . . . . . . . . . . . . . Explosions 3528 | . 598 429 734 78 468 447 390 231 . . . . . . 153 Melee 2351 | . . . . . . . 551 122 . . 421 . . . 1257 Ramming 178 | . . 12 52 12 . 99 . . . . 3 . . . . Kinetic 3740 | . 82 195 1320 174 1079 71 717 . . . . . . . 102 Thermal 133 | . 89 9 . . 35 . . . . . . . . . . Explosive 3277 | . 509 420 734 78 468 447 390 231 . . . . . . . Electromagnetic 453 | 13 287 . . . . . . . . . . . . . 153 Impact . | . . . . . . . . . . . . . . . . Slashing 2351 | . . . . . . . 551 122 . . 421 . . . 1257 Piercing . | . . . . . . . . . . . . . . . . Highest Corruption 5 | . . . . . . 5 . . . . . . . . . Average Corruption 5 | . . . . . . 5 . . . . . . . . . Corruption Purged . | . . . . . . . . . . . . . . . . Effects 6 | . . . . . . 6 . . . . . . . . . Message Errors 1 | . . . . . . 1 . . . . . . . . . Matter Fused 2 | . . . . . . 2 . . . . . . . . . Data Loss (minor) 1 | . . . . . . 1 . . . . . . . . . Data Loss (major) 1 | . . . . . . 1 . . . . . . . . . Misfires 1 | . . . . . . 1 . . . . . . . . . Overload Shots . | . . . . . . . . . . . . . . . . Overflow Damage 1169 | . 47 2 52 7 9 21 241 . . . 20 . . . 770 Projectiles . | . . . . . . . . . . . . . . . . Explosions 142 | . 47 2 35 7 9 18 12 . . . . . . . 12 Melee 1027 | . . . 17 . . 3 229 . . . 20 . . . 758 Knockbacks 1 | . . . 1 . . . . . . . . . . . . Impact 1 | . . . 1 . . . . . . . . . . . . Kinetic . | . . . . . . . . . . . . . . . . Secondary . | . . . . . . . . . . . . . . . . Self-Inflicted Damage 271 | . 57 103 25 33 16 36 . . . . 1 . . . . Shots 11 | . 3 5 . 1 1 1 . . . . . . . . . Rammed 9 | . . 2 3 1 . 2 . . . . 1 . . . . Targets Rammed 13 | . . 3 3 1 . 5 . . . . 1 . . . . Kicked 3 | . . . . . . 3 . . . . . . . . . Crushed 1 | . . 1 . . . . . . . . . . . . . Highest Temperature 178 | 18 178 12 20 4 28 3 29 . . . . . . . 12 Average Temperature 19 | 12 51 5 6 3 14 3 9 . . . . . . . 7 Received Heat Transfer 1086 | . 69 . 240 . . 18 171 60 30 . 30 . 9 . 459 Siege Activations . | . . . . . . . . . . . . . . . . Robots Corrupted . | . . . . . . . . . . . . . . . . Combat Hostiles . | . . . . . . . . . . . . . . . . Parts Fried 1 | . 1 . . . . . . . . . . . . . . Impact Corruptions 2 | . . . 1 . . 1 . . . . . . . . . Robots Melted . | . . . . . . . . . . . . . . . . Combat Hostiles . | . . . . . . . . . . . . . . . . Parts Melted 6 | . . . . . . . . . . . . . . . 6 Heat Transferred 127 | . 50 50 . . 27 . . . . . . . . . . Parts Sabotaged . | . . . . . . . . . . . . . . . . Parts Stolen . | . . . . . . . . . . . . . . . . Parts Stripped . | . . . . . . . . . . . . . . . . Power Chain Reactions 2 | . 2 . . . . . . . . . . . . . . Missiles Intercepted . | . . . . . . . . . . . . . . . . Alert | -11 -10 -10 -9 -9 -9 -8 -8 -7 -6 -6 -6 -6 -6 -6 -6 ------- Run | Scr Mat Min Mat Min Exi Min Mat Fac Fac Was Fac Low Low Zio Dee Peak Influence 435 | 5 202 263 435 80 . 160 295 244 92 1 117 . . . . Average Influence 85 | . 56 148 122 36 . 77 160 81 34 1 49 . . . . Maximum Alert Level 2 | . 1 1 2 . . . 1 1 . . . . . . . Low Security (%) 89 | 100 98 69 81 100 . 100 71 88 100 100 100 . . . . Level 1 9 | . 1 30 13 . . . 28 11 . . . . . . . Level 2 . | . . . 5 . . . . . . . . . . . . Level 3 . | . . . . . . . . . . . . . . . . Level 4 . | . . . . . . . . . . . . . . . . Level 5 . | . . . . . . . . . . . . . . . . High Security . | . . . . . . . . . . . . . . . . Max Security . | . . . . . . . . . . . . . . . . Squads Dispatched 21 | . 3 . 3 . . . 1 6 6 . 2 . . . . Investigation 8 | . 1 . 1 . . . . 2 4 . . . . . . Extermination 4 | . . . . . . . . 2 2 . . . . . . Reinforcement 9 | . 2 . 2 . . . 1 2 . . 2 . . . . Assault . | . . . . . . . . . . . . . . . . Garrison . | . . . . . . . . . . . . . . . . Intercept . | . . . . . . . . . . . . . . . . Construction Impeded 3 | . . . 1 . . . . 1 . . 1 . . . . Haulers Reinforced . | . . . . . . . . . . . . . . . . Stealth | -11 -10 -10 -9 -9 -9 -8 -8 -7 -6 -6 -6 -6 -6 -6 -6 --------- Run | Scr Mat Min Mat Min Exi Min Mat Fac Fac Was Fac Low Low Zio Dee Distress Signals 9 | . . . 4 . . . 2 . 1 . 2 . . . . Communications Jammed . | . . . . . . . . . . . . . . . . Distress Signals . | . . . . . . . . . . . . . . . . Times Spotted 172 | . 20 13 35 7 6 10 30 15 11 . 13 . 5 . 7 Peak Tracking Total 7 | . 3 3 6 4 7 4 6 6 5 . 4 . 6 . 3 Tactical Retreats 15 | . 1 . 3 . . . . 3 2 . 5 . 1 . . Traps | -11 -10 -10 -9 -9 -9 -8 -8 -7 -6 -6 -6 -6 -6 -6 -6 ------- Run | Scr Mat Min Mat Min Exi Min Mat Fac Fac Was Fac Low Low Zio Dee Traps Triggered 4 | . 2 . . . . . . 1 1 . . . . . . Indirectly . | . . . . . . . . . . . . . . . . Trap Hack Attempts . | . . . . . . . . . . . . . . . . Triggered . | . . . . . . . . . . . . . . . . Disarmed . | . . . . . . . . . . . . . . . . Reprogrammed . | . . . . . . . . . . . . . . . . Reused . | . . . . . . . . . . . . . . . . Traps Extracted . | . . . . . . . . . . . . . . . . Installed . | . . . . . . . . . . . . . . . . Triggered 4 | . . . . . . . . . . . . 4 . . . Machines | -11 -10 -10 -9 -9 -9 -8 -8 -7 -6 -6 -6 -6 -6 -6 -6 ---------- Run | Scr Mat Min Mat Min Exi Min Mat Fac Fac Was Fac Low Low Zio Dee Machines Disabled 13 | . 2 1 4 . 3 1 . 1 . . . . . . 1 Max in Single Turn 3 | . 2 1 3 . 1 1 . 1 . . . . . . 1 Garrison Access 2 | . . . . . . . . . 1 . 1 . . . . Machines Sabotaged . | . . . . . . . . . . . . . . . . Garrisons Compromised . | . . . . . . . . . . . . . . . . Overloaded Fab Kills . | . . . . . . . . . . . . . . . . Fab Network Shutdowns . | . . . . . . . . . . . . . . . . Hacking | -11 -10 -10 -9 -9 -9 -8 -8 -7 -6 -6 -6 -6 -6 -6 -6 --------- Run | Scr Mat Min Mat Min Exi Min Mat Fac Fac Was Fac Low Low Zio Dee Machines Accessed 54 | . 4 . 6 . 2 . 4 7 17 . 14 . . . . Terminals 36 | . 3 . 6 . . . 2 5 12 . 8 . . . . Fabricators 6 | . . . . . . . . 1 3 . 2 . . . . Repair Stations 1 | . . . . . . . . 1 . . . . . . . Recycling Units 4 | . 1 . . . . . 1 . . . 2 . . . . Scanalyzers 3 | . . . . . . . 1 . 1 . 1 . . . . Garrison Access 2 | . . . . . . . . . 1 . 1 . . . . Total Hacks 154 | . 10 . 21 . 2 . 10 22 48 . 41 . . . . Successful 96 | . 5 . 11 . 2 . 6 11 31 . 30 . . . . Failed 58 | . 5 . 10 . . . 4 11 17 . 11 . . . . Catastrophic 7 | . . . . . . . . 3 4 . . . . . . Database Lockouts . | . . . . . . . . . . . . . . . . Manual 98 | . 7 . 19 . 1 . . 17 31 . 23 . . . . Terminals 110 | . 9 . 21 . . . 5 17 33 . 25 . . . . Fabricators 24 | . . . . . . . . 3 12 . 9 . . . . Repair Stations 2 | . . . . . . . . 2 . . . . . . . Recycling Units 5 | . 1 . . . . . 2 . . . 2 . . . . Scanalyzers 9 | . . . . . . . 3 . 2 . 4 . . . . Garrison Access 2 | . . . . . . . . . 1 . 1 . . . . Terminal Hacks 41 | . 4 . 9 . 2 . 2 2 12 . 10 . . . . Record 4 | . . . . . 1 . . . 1 . 2 . . . . Part Schematic 8 | . . . . . . . . 1 6 . 1 . . . . Robot Analysis 1 | . 1 . . . . . . . . . . . . . . Terminal Index 3 | . . . . . . . . 1 1 . 1 . . . . Fabricator Index 2 | . . . . . . . . . 1 . 1 . . . . Unreport Threat 4 | . . . 3 . . . . . . . 1 . . . . Locate Traps 2 | . 1 . . . . . 1 . . . . . . . . Recall Investigation 2 | . 1 . . . . . . . 1 . . . . . . Recall Extermination 1 | . . . . . . . . . 1 . . . . . . Recall Reinforcements 3 | . . . 1 . . . . . . . 2 . . . . Hauler Manifests 4 | . . . 1 . . . 1 . 1 . 1 . . . . Zone Layout 6 | . 1 . 4 . . . . . . . 1 . . . . EX-Prototype ID Bank 1 | . . . . . 1 . . . . . . . . . . Fabricator Hacks 14 | . . . . . . . . 2 7 . 5 . . . . Network Status 1 | . . . . . . . . . . . 1 . . . . Load Schematic 6 | . . . . . . . . 1 3 . 2 . . . . Build 7 | . . . . . . . . 1 4 . 2 . . . . Repair Station Hacks 2 | . . . . . . . . 2 . . . . . . . Scan Component 1 | . . . . . . . . 1 . . . . . . . Repair 1 | . . . . . . . . 1 . . . . . . . Recycling Unit Hacks 4 | . 1 . . . . . 1 . . . 2 . . . . Retrieve Components 4 | . 1 . . . . . 1 . . . 2 . . . . Scanalyzer 7 | . . . . . . . 3 . 2 . 2 . . . . Insert Component 5 | . . . . . . . 3 . 1 . 1 . . . . Analyze 2 | . . . . . . . . . 1 . 1 . . . . Garrison Access Hacks 2 | . . . . . . . . . 1 . 1 . . . . Seal Access 2 | . . . . . . . . . 1 . 1 . . . . Unauthorized Hacks 26 | . . . 2 . . . . 5 9 . 10 . . . . Terminals 20 | . . . 2 . . . . 4 7 . 7 . . . . Track 7 | . . . 2 . . . . 1 2 . 2 . . . . Assimilate 6 | . . . . . . . . 1 2 . 3 . . . . Botnet 5 | . . . . . . . . 2 2 . 1 . . . . Operators 2 | . . . . . . . . . 1 . 1 . . . . Fabricators 6 | . . . . . . . . 1 2 . 3 . . . . Prioritize 4 | . . . . . . . . 1 1 . 2 . . . . Siphon 2 | . . . . . . . . . 1 . 1 . . . . Repair Stations . | . . . . . . . . . . . . . . . . Recycling Units . | . . . . . . . . . . . . . . . . Scanalyzers . | . . . . . . . . . . . . . . . . Garrison Access . | . . . . . . . . . . . . . . . . Data Cores Recovered . | . . . . . . . . . . . . . . . . Used . | . . . . . . . . . . . . . . . . Hacking Detections 43 | . 4 . 6 . . . 3 7 13 . 10 . . . . Full Trace Events 6 | . . . 1 . . . . 1 4 . . . . . . Feedback Events . | . . . . . . . . . . . . . . . . Feedback Blocked . | . . . . . . . . . . . . . . . . Robot Schematics Acquired . | . . . . . . . . . . . . . . . . Robots Built . | . . . . . . . . . . . . . . . . Matter . | . . . . . . . . . . . . . . . . Time . | . . . . . . . . . . . . . . . . Total Robot Build Rating . | . . . . . . . . . . . . . . . . Part Schematics Acquired 10 | . . . . . . . . 1 7 . 2 . . . . Parts Built 7 | . . . . . . . . 1 4 . 2 . . . . Matter 1181 | . . . . . . . . 146 594 . 441 . . . . Time 267 | . . . . . . . . 18 183 . 66 . . . . Total Part Build Rating 30 | . . . . . . . . 3 19 . 8 . . . . Parts Repaired 1 | . . . . . . . . 1 . . . . . . . Time 60 | . . . . . . . . 60 . . . . . . . Parts Recycled . | . . . . . . . . . . . . . . . . Recycled Matter . | . . . . . . . . . . . . . . . . Retrieved Matter . | . . . . . . . . . . . . . . . . Retrieved Components 12 | . 8 . . . . . 3 . . . 1 . . . . Parts Scanalyzed 2 | . . . . . . . . . 1 . 1 . . . . Part Schematics Acquired 2 | . . . . . . . . . 1 . 1 . . . . Parts Damaged . | . . . . . . . . . . . . . . . . Bothacking | -11 -10 -10 -9 -9 -9 -8 -8 -7 -6 -6 -6 -6 -6 -6 -6 ------------ Run | Scr Mat Min Mat Min Exi Min Mat Fac Fac Was Fac Low Low Zio Dee Used RIF Installer . | . . . . . . . . . . . . . . . . Robots Hacked . | . . . . . . . . . . . . . . . . Non-combat . | . . . . . . . . . . . . . . . . Combat . | . . . . . . . . . . . . . . . . Robot Hacks Applied . | . . . . . . . . . . . . . . . . Relay Couplers Released . | . . . . . . . . . . . . . . . . Robots Rewired . | . . . . . . . . . . . . . . . . Allies Hacked . | . . . . . . . . . . . . . . . . Hacks Repelled . | . . . . . . . . . . . . . . . . Allies | -11 -10 -10 -9 -9 -9 -8 -8 -7 -6 -6 -6 -6 -6 -6 -6 -------- Run | Scr Mat Min Mat Min Exi Min Mat Fac Fac Was Fac Low Low Zio Dee Total Allies 11 | . . 3 . . . . . 1 2 . 3 . . 2 . Largest Group 3 | . . 3 3 . . . . 1 1 . 2 . . 2 2 Highest-Rated Group 57 | . . 40 40 . . . . 10 26 . 52 . . 57 57 Highest-Rated Ally 37 | . . 16 16 . . . . 10 26 . 26 . . 37 37 Total Orders . | . . . . . . . . . . . . . . . . Ally Attacks 45 | . . . 25 . . . . . . . . . . . 20 Total Damage 478 | . . . 200 . . . . . . . . . . . 278 Kills 4 | . . . 3 . . . . . . . . . . . 1 Allies Corrupted 1 | . . . . . . . . 1 . . . . . . . Allies Melted . | . . . . . . . . . . . . . . . . Intel | -11 -10 -10 -9 -9 -9 -8 -8 -7 -6 -6 -6 -6 -6 -6 -6 ------- Run | Scr Mat Min Mat Min Exi Min Mat Fac Fac Was Fac Low Low Zio Dee Robot Analysis Total 1 | . 1 . . . . . . . . . . . . . . Derelict Logs Recovered 4 | . . . . 2 . . . . . . . 2 . . . Drone Launches . | . . . . . . . . . . . . . . . . Drone Recoveries . | . . . . . . . . . . . . . . . . Exploration | -11 -10 -10 -9 -9 -9 -8 -8 -7 -6 -6 -6 -6 -6 -6 -6 ------------- Run | Scr Mat Min Mat Min Exi Min Mat Fac Fac Was Fac Low Low Zio Dee Turns Passed 14604 | 88 1118 850 1747 871 1969 641 1423 1022 1771 144 796 194 83 1152 735 Spaces Moved 11554 | 49 560 436 866 408 925 403 648 1349 1601 238 1532 440 209 954 936 Core 940 | 4 . 10 . . 1 . . . 37 92 . . . 647 149 Treads 3316 | 45 560 256 541 408 882 . 613 11 . . . . . . . Legs 480 | . . . . . 42 403 35 . . . . . . . . Wheels 495 | . . 170 325 . . . . . . . . . . . . Hover . | . . . . . . . . . . . . . . . . Flight 6323 | . . . . . . . . 1338 1564 146 1532 440 209 307 787 Fastest Speed 29 | 50 160 100 100 200 150 150 150 29 29 29 29 32 34 34 32 Average Speed 94 | 151 175 170 166 200 189 150 187 30 30 56 30 32 34 112 54 Slowest Speed 1600 | 160 180 750 200 200 1600 150 250 190 450 100 99 34 34 150 350 Overloaded Moves . | . . . . . . . . . . . . . . . . Propulsion Burnouts . | . . . . . . . . . . . . . . . . Robots Hopped 22 | . . . . . . . . 4 11 . 7 . . . . Cave-ins Triggered . | . . . . . . . . . . . . . . . . Exploration Rate (%) 62 | 4 85 81 77 91 69 86 39 27 50 93 43 58 42 83 72 Regions Visited 15 Branch Regions 8 Pre-discovered Areas 5 | . . . . 1 1 . . . . . . . . 3 . Known Exits Taken 6 | . . . . . . . 1 1 . . 1 1 1 1 . Unknown Exits Taken 7 | 1 1 1 1 1 1 1 . . . . . . . . . Scrap Searched 7 | . . . . 2 . 1 . . . . . 1 . 3 . Spaces Dug 167 | . 6 5 1 . . 13 3 29 58 . 37 . 3 3 9 Terrain Destroyed 399 | . 52 80 35 12 15 29 22 42 58 . 37 . 3 3 11 Melee 143 | . . . 1 . . . 3 29 58 . 37 . 3 3 9 Projectile 3 | . . . . . . . 1 . . . . . . . 2 AOE 253 | . 52 80 34 12 15 29 18 13 . . . . . . . Actions | -11 -10 -10 -9 -9 -9 -8 -8 -7 -6 -6 -6 -6 -6 -6 -6 --------- Run | Scr Mat Min Mat Min Exi Min Mat Fac Fac Was Fac Low Low Zio Dee Total 14554 | 58 647 502 1071 438 1056 423 794 1913 2787 248 1802 491 216 1015 1093 Wait 2020 | . 32 28 45 10 . 3 45 485 1073 3 162 43 3 39 49 Move 11499 | 48 559 435 865 407 924 402 647 1340 1581 237 1518 439 208 953 936 Hop 19 | . . . . . . . . 4 9 . 6 . . . . Pick Up 170 | . 15 2 33 2 27 . 16 3 23 4 26 3 1 5 10 Fast Attach 41 | 7 1 2 1 . 8 . 2 4 6 . 5 . . . 5 Attach 40 | . 2 . 7 1 11 1 3 6 . . . 1 . . 8 Detach 24 | 1 . . 2 . 6 . 2 3 2 . 1 . . . 7 Swap 71 | 1 5 6 17 1 4 1 13 7 3 . 5 3 . . 5 Drop 188 | . 2 1 26 . 27 . 18 24 29 4 33 2 1 5 16 Fire 263 | 1 31 25 70 16 49 11 37 3 . . . . . . 20 Melee 206 | . . . 2 . . . 11 34 61 . 45 . 3 13 37 Ram 4 | . . . 3 . . . . . . . 1 . . . . Kick 5 | . . . . . . 5 . . . . . . . . . Crush 4 | . . 3 . 1 . . . . . . . . . . . Escape Stasis . | . . . . . . . . . . . . . . . . Rewire . | . . . . . . . . . . . . . . . . Trap . | . . . . . . . . . . . . . . . . Miscellaneous . | . . . . . . . . . . . . . . . . Route ------- -11/Scrapyard -10/Materials (discovered 3 exits: *Mat x2 / [*Min]) -10/Mines (discovered 2 exits: *Mat x2) -9/Materials (discovered 3 exits: *Mat x2 / [*Min]) -9/Mines (discovered 3 exits: *Mat x2 / *Exi) -9/Exiles -8/Mines -8/Materials -7/Factory (discovered 3 exits: *Fac x2 / *Sto) -6/Factory (discovered 2 exits: *Fac x2) -6/Waste -6/Factory (discovered 2 exits: *Fac / *Low) -6/Lower Caves -6/Lower Caves (discovered 2 exits: *Fac / *Zio) -6/Zion (discovered 2 exits: *Dee / [*Pro]) -6/Deep Caves (discovered 1 exit: [*Pro]) History --------- Turn | Location | Event 29 | -11/Scrapyard | Discovered new exit (range 15) 89 | -11/Scrapyard | Entered Materials 300 | -10/Materials | Build established: Mutant 492 | -10/Materials | Discovered new exit (range 12) 716 | -10/Materials | Discovered new exit (range 16) 785 | -10/Materials | Discovered new exit (range 6) 1207 | -10/Materials | Entered Mines 1263 | -10/Mines | Assembled infested the area 1283 | -10/Mines | Met a Derelict bent on vengeance 1510 | -10/Mines | Discovered new exit (range 2) 1728 | -10/Mines | Discovered new exit (range 15) 1897 | -10/Mines | Assisted by bots powering up and referring to "LRC-V3" 2057 | -10/Mines | Entered Materials 2057 | -9/Materials | Accompanied by 3 allies 2057 | -9/Materials | Evolved 2 slots: Utility x2 2345 | -9/Materials | Build established: Hauler-Mutant 2529 | -9/Materials | Discovered new exit (range 7) 2657 | -9/Materials | Discovered new exit (range 15) 3575 | -9/Materials | Discovered new exit (range 16) 3804 | -9/Materials | Entered Mines 3834 | -9/Mines | Learned Materials garrison access intel 3844 | -9/Mines | Discovered new exit (range 13) 3965 | -9/Mines | Assisted by bots powering up and referring to "LRC-V3" 4104 | -9/Mines | Learned location of Storage (-7) 4252 | -9/Mines | A weapon hastily lodged in a ceiling crevice suddenly fell to the ground 4391 | -9/Mines | Deemed a non-threat by the Exiles lab entrance 4391 | -9/Mines | Discovered new exit (range 5) 4424 | -9/Mines | Discovered new exit (range 7) 4675 | -9/Mines | Entered Exiles 4723 | -9/Exiles | Met 8R-AWN 4755 | -9/Exiles | Met EX-HEX 4835 | -9/Exiles | Met EX-DEC 4847 | -9/Exiles | Learned location of Zion (-6) 5129 | -9/Exiles | Met EX-BIN 5157 | -9/Exiles | Aligned with FarCom system 5159 | -9/Exiles | Given EX-Vault access code 5207 | -9/Exiles | Opened EX-Vault 5227 | -9/Exiles | Found Superbattery 5232 | -9/Exiles | Found YOLO Cannon 5240 | -9/Exiles | Found Latent Energy Streamer 5284 | -9/Exiles | Warned to stay clear of 0b10 Research branches 5430 | -9/Exiles | Discovered new exit (range 15) 5760 | -9/Exiles | Build established: Mutant 6186 | -9/Exiles | Attacked by the Exiles 6227 | -9/Exiles | Core integrity fell below 50% 6341 | -9/Exiles | Destroyed 8R-AWN 6355 | -9/Exiles | Found Prototype Ballistic Gun 6365 | -9/Exiles | Identified 8R-AWN's Boregun 6368 | -9/Exiles | Lost 10 parts (3n3u4w) 6374 | -9/Exiles | Found Prototype Protection 6374 | -9/Exiles | Identified 8R-AWN's Armor/EX 6382 | -9/Exiles | Found Prototype Device 6382 | -9/Exiles | Identified AS-neutralizer No. 17b 6558 | -9/Exiles | Found Prototype Processor 6644 | -9/Exiles | Stole three prototypes: Superbattery, Latent Energy Streamer, YOLO Cannon 6644 | -9/Exiles | Entered Mines 6764 | -8/Mines | Build established: Hauler-Mutant 7263 | -8/Mines | Discovered new exit (range 9) 7285 | -8/Mines | Entered Materials 7285 | -8/Materials | Evolved 2 slots: Propulsion x1, Utility x1 7286 | -8/Materials | Loaded intel: 1 garrison access location 8204 | -8/Materials | Identified Exp. Targeting Computer 8680 | -8/Materials | Discovered new exit (range 11) 8706 | -8/Materials | Identified exit to Factory 8708 | -8/Materials | Entered Factory 8708 | -7/Factory | Evolved 2 slots: Utility x2 8780 | -7/Factory | Discovered new exit (range 12) 8791 | -7/Factory | Identified exit to Storage 8941 | -7/Factory | Discovered new exit (range 16) 9035 | -7/Factory | Build established: Scavenger-Sprinter 9317 | -7/Factory | Discovered new exit (range 6) 9354 | -7/Factory | Identified exit to Factory 9523 | -7/Factory | Repaired Imp. VTOL Module 9546 | -7/Factory | Fabricated Hacking Suite? 9730 | -7/Factory | Entered another Factory area 9730 | -6/Factory | Evolved 2 slots: Power x1, Utility x1 9955 | -6/Factory | Fabricated Lrn. Sensor Array? 10516 | -6/Factory | Discovered new exit (range 11) 10688 | -6/Factory | Discovered new exit (range 11) 10814 | -6/Factory | Fabricated Imp. Hacking Suite? 11108 | -6/Factory | Fabricated Imp. Hacking Suite? 11303 | -6/Factory | Fabricated Imp. System Shield? 11501 | -6/Factory | Sucked down chute 11501 | -6/Factory | Entered Waste 11501 | -6/Waste | The area was eerily silent 11569 | -6/Waste | Discovered new exit (range 16) 11644 | -6/Waste | Identified exit to Factory 11645 | -6/Waste | Entered Factory 11724 | -6/Factory | Discovered new exit (range 16) 11938 | -6/Factory | Build established: Hacker-Sprinter 12006 | -6/Factory | Fabricated Cld. VTOL Module? 12062 | -6/Factory | Fabricated Cld. VTOL Module? 12403 | -6/Factory | Discovered new exit (range 14) 12441 | -6/Factory | Identified exit to Lower Caves 12441 | -6/Factory | Entered Lower Caves 12605 | -6/Lower Caves | Discovered new exit (range 2) 12605 | -6/Lower Caves | Identified exit to Lower Caves 12635 | -6/Lower Caves | Entered another Lower Caves area 12635 | -6/Lower Caves | Discovered new exit (range 14) 12640 | -6/Lower Caves | Identified exit to Factory 12667 | -6/Lower Caves | Attacked by a faux Warlord 12717 | -6/Lower Caves | Discovered new exit (range 5) 12718 | -6/Lower Caves | Identified exit to Zion 12718 | -6/Lower Caves | Entered Zion 12740 | -6/Zion | Discovered new exit (range 12) 12925 | -6/Zion | Build established: Hacker-Mutant 13435 | -6/Zion | Learned location of Warlord (-5) 13521 | -6/Zion | Gained Derelict followers 13847 | -6/Zion | Discovered new exit (range 3) 13854 | -6/Zion | Identified exit to Deep Caves 13855 | -6/Zion | Saw the warning signs outside the Deep Caves entrance 13870 | -6/Zion | Entered Deep Caves 13870 | -6/Deep Caves | Accompanied by 2 allies 14125 | -6/Deep Caves | Attacked by Z-Imprinter 14171 | -6/Deep Caves | Destroyed Z-Imprinter 14183 | -6/Deep Caves | Core integrity fell below 50% 14210 | -6/Deep Caves | Lost 8 parts (1p2n3u2w) 14270 | -6/Deep Caves | Z-Facility disabled 14413 | -6/Deep Caves | Found Prototype Protection 14413 | -6/Deep Caves | Identified Zio. Weapon Casing 14462 | -6/Deep Caves | Discovered new exit (range 7) 14512 | -6/Deep Caves | Found Zio. Weapon Casing 14519 | -6/Deep Caves | Found Zio. Weapon Casing 14557 | -6/Deep Caves | Spotted as-95831 14559 | -6/Deep Caves | Core integrity fell below 20% 14605 | -6/Deep Caves | Destroyed by as-95831 with Assembled Focal Cannon Last Messages --------------- 14531_ Acquired Superbattery. 14566_ Dropped Lrn. Sensor Array. 14567_ Acquired Lrn. Sensor Array. 14568_ Dropped Zio. Biocell. 14568_ Dropped Superbattery. 14569_ Extracted 259 energy. 14569_ Dropped Lrn. Terrain Scanner. 14569_ Dropped Mak. System Shield. 14570_ Dropped Lrn. Sensor Array. 14570_ Dropped Lrg. Storage Unit. 14591_ as-95831: "DSI9AT1D G8OHIBQ29FWG 26R186 QD12WHW8W33 TDK1 81FTS" 14598_ Destroyed Prototype Device. 14599_ as-95831 GOLEM Unit beginning Prototype Device integration. 14599_ Adv. Signal Interpreter destroyed. 14599_ Zio. Biocell destroyed. 14600_ as-95831 Prototype Device integration complete. 14602_ Imp. VTOL Module destroyed. 14602_ Shock Bomb Launcher destroyed. 14602_ Imp. Hacking Suite destroyed. 14603_ Extracted 75 energy. Map ----- +----------------------------------------------------+ | ?????????????????????????????????????????????????" | | ????????????????????????????????????????????????? | | ?????? ? ?????????????????????????????????????? | | ?????? ????????????????????????????????????? | | ????? [ ???????????????????????????????????? | | ????? ??????????????????????????????????? | | ????? ???###????????????????????????????? | | ???? ??# #????? ??????????????????????? | | ??? === ### ####?# ???????????????????????# | | ??? = # #?# ?????????????????????## | | ??? ####?# ????????????????????## | | ??? ###?# ???????????????????## | | ??? #?# ??????????????????## | | ??? * ###?# #????????########?# | | ???? = ##??# #??????### # <#?# | | ???? * = #??# #?###??# #?# | | ???? = #??# ##;;#??# ####?# | | ????? =* #?## #??## ###????## | | ????? * ### ##??# #??????## | | ???? ## #??# ##?????# | | ???? ## #### ##????# | | ??? #?# !! ###??## | | ??? ### !!! ##??# | | ??" [[[ * ### ! ####### #??# | | ?? ** #?# ##????## #### | | ?? #?#@ #?????## ## # | | ?" ! ###G #??##### # | | ?" ##??# # | | ?""" ! *! * #??# ## ## | | ?" ! #??# #######? | | ??" ### #?## ##??????# | | ?" #?# #??## ##???????# | | ??" ##?# #???## #?????????? | | ?" # # #??## #????###??????????? | | ?" #### ## ## ##???## #?????????????????? | | ?""" ?????# ?# ####?????## ##?????????????????? | | ??" ???????#??# #??????????###??????????????????? | | ??#?????????????#????????????????????????????????? | | | | | | | | | | | | | | | | | | | | | | | | | +----------------------------------------------------+ Best States ------------- Heat Dissipation 54 Energy Generation 27 Energy Capacity 2275 Matter Stores 300 Matter Capacity 300 Sight Range 16 Robot Scan Range 20 Terrain Scan Range 24 Terrain Scan Density 10 Additional Mass Support 12 Armor Coverage 450 Weapon Shielding 100 Evasion (%) 64 Targeting Accuracy 12 Recoil Reduction 3 Offensive Hacking 36 Defensive Hacking 12 Item Schematics ----------------- Hacking Suite | -7/Factory | Hacked Force Field | -6/Factory | Hacked Imp. Terrain Scan Processor | -6/Factory | Scanalyzed Lrn. Sensor Array | -6/Factory | Hacked Lrn. Terrain Scanner | -6/Factory | Hacked Imp. Hacking Suite | -6/Factory | Hacked Imp. System Shield | -6/Factory | Hacked Adv. Terrain Scan Processor | -6/Factory | Hacked Cld. VTOL Module | -6/Factory | Hacked Biomechanical Wings | -6/Factory | Scanalyzed Robot Schematics ------------------ None Fabricated ------------ Hacking Suite | x1 | -7/Factory Lrn. Sensor Array | x1 | -6/Factory Imp. Hacking Suite | x1 | -6/Factory Imp. Hacking Suite | x1 | -6/Factory Imp. System Shield | x1 | -6/Factory Cld. VTOL Module | x1 | -6/Factory Cld. VTOL Module | x1 | -6/Factory Alien Tech Used ----------------- None Achievements -------------- Party Time Challenges ------------ None Game ------ Seed MyomerMachineBeamcaster Manual? 0 Play Time 02:23:56 Cumulative 105.3 hours Start 2020.08.20 @ 12:46:41 End 2020.08.20 @ 15:38:10 Sessions 1 Manual Loads 0 Difficulty Rogue Special Mode None Game No. 119 Rogue 32 Adventurer 87 Explorer 0 Win Type - Total 3 Types 2/0/0/1/0/0/0 Lore% 49 Gallery% 63 Achievement% 53 Wizard Run 0 Options --------- ASCII 0 Keyboard 1 Movement Numpad Keybinds 0 Fullscreen 1 Font 18/Smallcaps Map View 76x50 Tactical HUD 1 Map Filters NONE Filters NONE Steam 1 RUN: a21a982a-93b3-4ab0-b006-3b0260141c08